Cogmind - Beta 13 @@@ ROGUE MODE // 2024.05.04 @ 01:43:44 Player: Exo Result: Destroyed by G-47 Trooper with Particle Gun Performance ------------- Evolutions (2) 1000 Regions Visited (5) 1000 Robots Destroyed (60) 300 Value Destroyed (1874) 1874 Prototype IDs (1) 20 Alien Tech Used (0) 0 Bonus (120) 120 TOTAL SCORE: 4314 Bonus ------- Follower Combat Kills 120 Cogmind --------- Core Integrity 0/550 Matter 243/300 Energy 184/300 System Corruption 15% Temperature Cool (9) Movement Core (400) Ox7 Location -8/Materials Parts ------- > --- POWER (1) -------- (None) > --- PROPULSION (5) --- (None) > --- UTILITY (3) ------ Medium Storage Unit Compact Battery Power Shielding > --- WEAPON (2) ------- Particle Gun Gauss Cannon > --- INVENTORY (10) --- Small Storage Unit Large Storage Unit Compact Matter Pod (150) Particle Charger Light Armor Plating Graphene Brace Heavy Laser Gauss Cannon Peak State ------------ > --- POWER ------------ Light Deuterium Engine > --- PROPULSION ------- Aluminum Leg Aluminum Leg Aluminum Leg Aluminum Leg Aluminum Leg > --- UTILITY ---------- Small Storage Unit Core Shielding Light Armor Plating > --- WEAPON ----------- Enhanced Autogun Enhanced Autogun > --- INVENTORY -------- Light Deuterium Engine Light Deuterium Engine Compact Matter Pod Particle Charger Shock Rifle Shock Rifle Rocket Launcher [Rating: 21] Favorites ----------- Power Light Deuterium Engine Engine Light Deuterium Engine Power Core Light Nuclear Core Propulsion Aluminum Leg Treads Light Treads Leg Aluminum Leg Utility Small Storage Unit Device Hardlight Generator Storage Small Storage Unit Protection Core Shielding Weapon Enhanced Autogun Energy Gun Particle Gun Ballistic Gun Enhanced Autogun Ballistic Cannon Gauss Cannon Launcher Rocket Launcher Build | -11 -10 -10 -9 -9 -8 ------- Run | Yrd Mat Min Mat Min Mat Slots Evolved 4 | . . . 2 . 2 Power . | . . . . . . Propulsion 3 | . . . 2 . 1 Utility 1 | . . . . . 1 Weapon . | . . . . . . Parts Attached 72 | 5 2 11 14 6 34 Power 11 | 1 . 3 2 . 5 Engine 9 | 1 . 2 2 . 4 Core 2 | . . 1 . . 1 Reactor . | . . . . . . Propulsion 25 | 2 . 3 8 6 6 Treads 3 | . . . 3 . . Leg 22 | 2 . 3 5 6 6 Wheel . | . . . . . . Hover . | . . . . . . Flight . | . . . . . . Utility 14 | 1 1 1 2 . 9 Device 2 | . . . . . 2 Storage 9 | 1 1 1 1 . 5 Processor . | . . . . . . Hackware . | . . . . . . Protection 3 | . . . 1 . 2 Artifact . | . . . . . . Weapon 22 | 1 1 4 2 . 14 Energy Gun 11 | 1 . 2 . . 8 Energy Cannon . | . . . . . . Ballistic Gun 8 | . 1 2 2 . 3 Ballistic Cannon 2 | . . . . . 2 Launcher 1 | . . . . . 1 Special Weapon . | . . . . . . Impact Weapon . | . . . . . . Slashing Weapon . | . . . . . . Piercing Weapon . | . . . . . . Special Melee Weapon . | . . . . . . Unidentified Prototypes 1 | . . . 1 . . Corrupted Parts 3 | . . . . . 3 System Corruption 10 | . . . . . 10 Parts Lost 31 | . . 3 1 1 26 Power 6 | . . 1 . . 5 Propulsion 13 | . . 1 1 1 10 Utility 4 | . . . . . 4 Weapon 8 | . . 1 . . 7 Highest Loss Streak 8 | . . 3 1 1 8 To Critical Strikes . | . . . . . . Average Slot Usage (%) 84 | . 91 98 81 99 64 Engine 9 | . 14 9 10 11 7 Core 1 | . . 3 . . . Leg 25 | . 28 27 20 43 17 Device 1 | . . . . . 5 Storage 17 | . 22 27 17 11 9 Protection 4 | . . . 4 11 8 Energy Gun 8 | . 14 13 2 . 9 Ballistic Gun 12 | . 12 14 19 22 5 Naked Turns . | . . . . . . Heaviest Build 30 | 12 16 16 20 17 30 Greatest Support 50 | 20 20 20 40 40 50 Greatest Overweight (x) 7 | . . 1 1 . 7 Average Overweight (x) . | . . . . . 1 Largest Inventory Capacity 10 | 8 8 8 8 8 10 Average Capacity 8 | 7 8 8 8 8 9 Most Carried 10 | 7 8 8 8 8 10 Average Carried 7 | 4 6 6 7 7 8 Final Capacity 10 | 8 8 8 8 8 10 Final Carried 8 | 7 7 5 8 8 8 Class Distribution -------------------- 60% | Mutant 39% | Scavenger-Mutant Dominant Class ---------------- Mutant | -10/Materials Scavenger-Mutant | -10/Mines Mutant | -9/Materials Scavenger-Mutant | -9/Mines Mutant | -8/Materials Resources | -11 -10 -10 -9 -9 -8 ----------- Run | Yrd Mat Min Mat Min Mat Matter Collected 1849 | 186 79 457 349 159 619 Remotely . | . . . . . . Salvage Created 2312 | . 79 192 468 244 1329 Parts 118 | . 2 13 32 17 54 Haulers Intercepted . | . . . . . . Recyclers Shooed 2 | . . . 2 . . Parts Field Recycled . | . . . . . . Retrieved Matter . | . . . . . . Parts Self-Destructed . | . . . . . . Prevented . | . . . . . . Kills | -11 -10 -10 -9 -9 -8 ------- Run | Yrd Mat Min Mat Min Mat Combat Hostiles Destroyed 50 | . 2 8 11 5 24 Guns 43 | . 2 8 11 5 17 Cannons 3 | . . . . . 3 AOE 3 | . . . . . 3 Classes Destroyed 10 | . 1 1 3 . 5 Worker 2 | . . . 1 . 1 Builder 1 | . . . . . 1 Tunneler 2 | . . . . . 2 Recycler 3 | . . . . . 3 Watcher 2 | . . . 1 . 1 Swarmer 11 | . . 5 2 . 4 Grunt 32 | . 2 3 8 5 14 Brawler 2 | . . . . . 2 Sentry 4 | . . . 1 . 3 Heavy 1 | . . . . . 1 Best Kill Streak 6 | . 1 3 5 3 6 Combat Bots Only 4 | . 1 3 3 3 4 Max Kills in Single Turn 3 | . 1 1 1 1 3 Gunslinging 1 | . . . . . 1 Exploded 2 | . . . . . 2 Melee . | . . . . . . Uniques/NPCs Destroyed . | . . . . . . Combat | -11 -10 -10 -9 -9 -8 -------- Run | Yrd Mat Min Mat Min Mat Hostile Shots Fired 416 | . 16 84 78 16 222 Missed 94 | . 4 17 30 3 40 Damage Taken 4615 | . 162 719 513 168 3053 Core 905 | . 45 175 110 9 566 Absorbed by Shields 100 | . . . . . 100 Redirected to Shielding 78 | . . . 16 2 60 Core Remaining (%) 60 | 100 . 12 . 70 . Volleys Fired 167 | . 9 35 27 12 84 Largest 2 | . 2 2 2 2 2 Hottest 120 | . 70 85 50 50 120 Shots Fired 316 | . 18 70 54 24 150 Gun 289 | . 18 70 54 24 123 Cannon 23 | . . . . . 23 Launcher 4 | . . . . . 4 Special . | . . . . . . Kinetic 214 | . 9 35 54 24 92 Thermal 59 | . 9 35 . . 15 Explosive 4 | . . . . . 4 Electromagnetic 39 | . . . . . 39 Robot Hit Streak 20 | . 3 20 6 7 13 Robot Miss Streak 7 | . 3 7 3 2 3 Penetration Max . | . . . . . . Secondary Targets 7 | . 1 2 . . 4 Max Gunslinging Chain 1 | . 1 1 . . 1 Shots Hit Robots 211 | . 10 49 34 12 106 Core Hits 99 | . 5 16 15 7 56 Critical Kills 3 | . . . 1 1 1 Critical Parts Destroyed 1 | . . . . . 1 Critical Strikes 10 | . . 3 1 1 5 Burn 3 | . . 3 . . . Destroy 4 | . . . 1 1 2 Blast 2 | . . . . . 2 Corrupt 1 | . . . . . 1 Melee Attacks . | . . . . . . Impact . | . . . . . . Slashing . | . . . . . . Piercing . | . . . . . . Sneak Attacks . | . . . . . . Combat Hostiles . | . . . . . . Follow-up Attacks . | . . . . . . Damage Inflicted 4066 | . 134 607 570 242 2513 Guns 3208 | . 131 607 565 242 1663 Cannons 404 | . . . . . 404 Explosions 431 | . . . . . 431 Melee . | . . . . . . Ramming 23 | . 3 . 5 . 15 Kinetic 2493 | . 43 279 565 242 1364 Thermal 726 | . 88 328 . . 310 Explosive 291 | . . . . . 291 Electromagnetic 533 | . . . . . 533 Impact . | . . . . . . Slashing . | . . . . . . Piercing . | . . . . . . Highest Corruption 15 | . . . . . 15 Average Corruption 8 | . . . . . 8 Corruption Purged . | . . . . . . Corruption Blocked . | . . . . . . Effects 24 | . . . . . 24 Message Errors 7 | . . . . . 7 Matter Fused 2 | . . . . . 2 Heat Flow Errors 1 | . . . . . 1 Energy Discharges 2 | . . . . . 2 Parts Rejected 1 | . . . . . 1 Data Loss (minor) 8 | . . . . . 8 Data Loss (major) 2 | . . . . . 2 Alerts 1 | . . . . . 1 Overload Shots . | . . . . . . Overflow Damage 4 | . . . . . 4 Projectiles . | . . . . . . Explosions 4 | . . . . . 4 Melee . | . . . . . . Knockbacks 2 | . . . . . 2 Impact . | . . . . . . Kinetic 2 | . . . . . 2 Secondary . | . . . . . . Self-Inflicted Damage 101 | . . . . . 101 Shots 5 | . . . . . 5 Rammed 1 | . . . . . 1 Targets Rammed 14 | . 4 1 2 . 7 Kicked 13 | . 4 1 2 . 6 Crushed . | . . . . . . Highest Temperature 319 | . 72 319 62 69 263 Average Temperature 68 | . 20 89 16 29 81 Received Heat Transfer 1923 | . 87 279 192 93 1272 Effects 3 | . . 1 . . 2 Interference 2 | . . . . . 2 Damage (minor) 1 | . . 1 . . . Siege Activations . | . . . . . . Robots Corrupted 1 | . . . . . 1 Combat Hostiles 1 | . . . . . 1 Parts Fried 1 | . . . . . 1 Impact Corruptions . | . . . . . . Robots Melted . | . . . . . . Combat Hostiles . | . . . . . . Parts Melted 4 | . . 4 . . . Heat Transferred 1852 | . 259 1036 . . 557 Parts Sabotaged . | . . . . . . Parts Stolen . | . . . . . . Parts Stripped . | . . . . . . Power Chain Reactions 2 | . . . . . 2 Alert | -11 -10 -10 -9 -9 -8 ------- Run | Yrd Mat Min Mat Min Mat Peak Influence 316 | . 87 287 205 135 316 Initial 33 | . . 33 . 25 . Average 101 | . 58 88 50 79 160 Maximum Alert Level 1 | . . 1 1 . 1 Low Security (%) 85 | 100 100 89 98 100 67 Level 1 14 | . . 10 1 . 32 Level 2 . | . . . . . . Level 3 . | . . . . . . Level 4 . | . . . . . . Level 5 . | . . . . . . High Security . | . . . . . . Max Security . | . . . . . . Squads Dispatched 4 | . . . 1 . 3 Investigation 2 | . . . 1 . 1 Extermination . | . . . . . . Reinforcement 2 | . . . . . 2 Assault . | . . . . . . Garrison . | . . . . . . Intercept . | . . . . . . Searches Triggered . | . . . . . . Construction Impeded . | . . . . . . Haulers Reinforced . | . . . . . . Active Scanning Responses . | . . . . . . Cargo Convoy Interrupts . | . . . . . . Stealth | -11 -10 -10 -9 -9 -8 --------- Run | Yrd Mat Min Mat Min Mat Distress Signals 4 | . . . . . 4 Communications Jammed . | . . . . . . Distress Signals . | . . . . . . Times Spotted 78 | . 4 14 22 5 33 Peak Tracking Total 8 | . 3 5 8 3 6 Tactical Retreats 1 | . . . . . 1 Traps | -11 -10 -10 -9 -9 -8 ------- Run | Yrd Mat Min Mat Min Mat Traps Triggered 1 | . . . . . 1 Indirectly . | . . . . . . Trap Hack Attempts . | . . . . . . Triggered . | . . . . . . Disarmed . | . . . . . . Reprogrammed . | . . . . . . Reused . | . . . . . . Traps Extracted . | . . . . . . Installed . | . . . . . . Triggered . | . . . . . . Machines | -11 -10 -10 -9 -9 -8 ---------- Run | Yrd Mat Min Mat Min Mat Machines Disabled 2 | . . . . . 2 Max in Single Turn 1 | . . . . . 1 Machines Repaired . | . . . . . . Machines Dismantled . | . . . . . . Machines Sabotaged . | . . . . . . Overloaded Fab Kills . | . . . . . . Hacking | -11 -10 -10 -9 -9 -8 --------- Run | Yrd Mat Min Mat Min Mat Machines Accessed 6 | . 3 . 2 . 1 Terminals 5 | . 2 . 2 . 1 Fabricators . | . . . . . . Repair Stations . | . . . . . . Recycling Units 1 | . 1 . . . . Scanalyzers . | . . . . . . Garrison Access . | . . . . . . Total Hacks 17 | . 10 . 3 . 4 Successful 10 | . 6 . 1 . 3 Failed 7 | . 4 . 2 . 1 Catastrophic . | . . . . . . Database Lockouts . | . . . . . . Manual . | . . . . . . Terminals 12 | . 5 . 3 . 4 Fabricators . | . . . . . . Repair Stations . | . . . . . . Recycling Units 5 | . 5 . . . . Scanalyzers . | . . . . . . Garrison Access . | . . . . . . Terminal Hacks 6 | . 2 . 1 . 3 Record 2 | . . . . . 2 Branch Access Points 1 | . 1 . . . . Alert Level 2 | . . . 1 . 1 Zone Layout 1 | . 1 . . . . Fabricator Hacks . | . . . . . . Repair Station Hacks . | . . . . . . Recycling Unit Hacks 4 | . 4 . . . . Recycle Component 1 | . 1 . . . . Process 1 | . 1 . . . . Report Inventory 1 | . 1 . . . . Retrieve Matter 1 | . 1 . . . . Scanalyzer . | . . . . . . Garrison Access Hacks . | . . . . . . Unauthorized Hacks . | . . . . . . Terminals . | . . . . . . Fabricators . | . . . . . . Repair Stations . | . . . . . . Recycling Units . | . . . . . . Scanalyzers . | . . . . . . Garrison Access . | . . . . . . Data Cores Recovered . | . . . . . . Used . | . . . . . . Hacking Detections 3 | . 1 . 2 . . Full Trace Events 1 | . . . 1 . . Feedback Events . | . . . . . . Feedback Blocked . | . . . . . . Robot Schematics Acquired . | . . . . . . Robots Built . | . . . . . . Authchips . | . . . . . . Time . | . . . . . . Total Robot Build Rating . | . . . . . . Part Schematics Acquired . | . . . . . . Parts Built . | . . . . . . Authchips . | . . . . . . Time . | . . . . . . Total Part Build Rating . | . . . . . . Parts Repaired . | . . . . . . Time . | . . . . . . Parts Recycled 1 | . 1 . . . . Recycled Matter 12 | . 12 . . . . Retrieved Matter 12 | . 12 . . . . Retrieved Components . | . . . . . . Parts Scanalyzed . | . . . . . . Part Schematics Acquired . | . . . . . . Parts Damaged . | . . . . . . Bothacking | -11 -10 -10 -9 -9 -8 ------------ Run | Yrd Mat Min Mat Min Mat Used RIF Installer . | . . . . . . Robots Hacked . | . . . . . . Non-combat . | . . . . . . Combat . | . . . . . . Robot Hacks Applied . | . . . . . . Relay Couplers Released . | . . . . . . Fabnet Peak Effective % . | . . . . . . Robots Rewired . | . . . . . . Allies Hacked . | . . . . . . Hacks Repelled . | . . . . . . Allies | -11 -10 -10 -9 -9 -8 -------- Run | Yrd Mat Min Mat Min Mat Total Allies 2 | . . 2 . . . Largest Group 2 | . . 2 1 . . Highest-Rated Group 41 | . . 41 10 . . Highest-Rated Ally 31 | . . 31 10 . . Total Orders . | . . . . . . Ally Attacks 20 | . . 20 . . . Total Damage 250 | . . 250 . . . Kills 4 | . . 4 . . . Allies Corrupted . | . . . . . . Allies Melted . | . . . . . . Intel | -11 -10 -10 -9 -9 -8 ------- Run | Yrd Mat Min Mat Min Mat Robot Analysis Total . | . . . . . . Derelict Logs Recovered 1 | . . 1 . . . Drone Launches . | . . . . . . Drone Recoveries . | . . . . . . Exploration | -11 -10 -10 -9 -9 -8 ------------- Run | Yrd Mat Min Mat Min Mat Turns Passed 3463 | 100 316 966 462 455 1164 Spaces Moved 2039 | 89 225 684 270 334 437 Core 55 | 35 . . . . 20 Treads 22 | . . . 22 . . Legs 1962 | 54 225 684 248 334 417 Wheels . | . . . . . . Hover . | . . . . . . Flight . | . . . . . . Fastest Speed 50 | 50 120 120 120 120 120 Average Speed 136 | 92 120 120 134 120 195 Slowest Speed 400 | 120 120 190 190 120 400 Overloaded Moves . | . . . . . . Propulsion Burnouts . | . . . . . . Robots Hopped . | . . . . . . Cave-ins Triggered . | . . . . . . Exploration Rate (%) 40 | 6 37 93 19 61 29 Regions Visited 5 Branch Regions 2 Pre-discovered Areas 2 | . . 2 . . . Known Exits Taken 1 | . 1 . . . . Unknown Exits Taken 4 | 1 . 1 1 1 . Scrap Searched 2 | . . 1 . 1 . Spaces Dug . | . . . . . . Terrain Destroyed 53 | . . . . . 53 Melee . | . . . . . . Projectile 9 | . . . . . 9 AOE 44 | . . . . . 44 Terrain Rammed . | . . . . . . Walls Destroyed . | . . . . . . Machines Disabled . | . . . . . . Actions | -11 -10 -10 -9 -9 -8 --------- Run | Yrd Mat Min Mat Min Mat Total 2442 | 106 252 763 337 375 609 Wait 55 | 2 7 12 6 15 13 Move 2034 | 88 224 683 269 333 437 Hop . | . . . . . . Pick Up 44 | 11 4 7 6 2 14 Fast Attach 45 | 1 1 6 10 5 22 Attach 19 | 4 1 4 . . 10 Detach 6 | . . 1 . . 5 Swap 8 | . . 1 4 1 2 Drop 50 | . 2 13 13 7 15 Fire 167 | . 9 35 27 12 84 Melee . | . . . . . . Ram 1 | . . . . . 1 Kick 13 | . 4 1 2 . 6 Crush . | . . . . . . Escape Stasis . | . . . . . . Rewire . | . . . . . . Trap . | . . . . . . Miscellaneous . | . . . . . . Route ------- -11/Scrapyard -10/Materials (discovered 3 exits: *Mat / *Min x2) -10/Mines (discovered 2 exits: *Mat x2) -9/Materials (discovered 2 exits: [*Min x2]) -9/Mines -8/Materials History --------- Turn | Location | Event 10 | -11/Scrapyard | Discovered new exit (range 15) 101 | -11/Scrapyard | Entered Materials 170 | -10/Materials | Discovered new exit (range 14) 274 | -10/Materials | Identified exit to Mines 301 | -10/Materials | Build established: Mutant 417 | -10/Materials | Entered Mines 447 | -10/Mines | Learned location of Mines (-9) 660 | -10/Mines | Learned location of Storage (-9) 1078 | -10/Mines | Core integrity fell below 50% 1122 | -10/Mines | Core integrity fell below 20% 1145 | -10/Mines | Lost 3 parts (1p1n1w) 1266 | -10/Mines | Discovered new exit (range 16) 1290 | -10/Mines | Discovered new exit (range 12) 1383 | -10/Mines | Entered Materials 1383 | -9/Materials | Accompanied by 1 ally 1383 | -9/Materials | Evolved 2 slots: Propulsion x2 1828 | -9/Materials | Discovered new exit (range 10) 1840 | -9/Materials | Discovered new exit (range 15) 1845 | -9/Materials | Entered Mines 1851 | -9/Mines | Met a Derelict bent on vengeance 2020 | -9/Mines | Found a hidden stash of uninstalled traps 2169 | -9/Mines | Build established: Scavenger-Mutant 2286 | -9/Mines | Discovered new exit (range 7) 2293 | -9/Mines | Received a Rocket Launcher from a helpful Derelict 2300 | -9/Mines | Entered Materials 2300 | -8/Materials | Evolved 2 slots: Propulsion x1, Utility x1 2618 | -8/Materials | Lost 8 parts (1p5n2w) 2813 | -8/Materials | Lost 7 parts (1p2n2u2w) 2833 | -8/Materials | Build established: Mutant 2934 | -8/Materials | Core integrity fell below 50% 2977 | -8/Materials | Lost 4 parts (1p1n2w) 3331 | -8/Materials | System corruption reached 10% 3395 | -8/Materials | Core integrity fell below 20% 3464 | -8/Materials | Destroyed by G-47 Trooper with Particle Gun Last Messages --------------- 03377_ Critical hit (Burn: +26). 03399_ System corrupted: Component data lost. 03402_ Dropped Imp. Ion Engine. 03405_ Hardlight Generator destroyed. 03408_ Aluminum Leg destroyed. 03411_ Lightning Gun destroyed. 03417_ #MSCGZIDG9>3<%QM&P8X5IUNOA 03423_ Slug penetrates Y-45 Defender. 03423_ Y-45 Defender Heat Sink blasted off. 03423_ Y-45 Defender destroyed. 03427_ Overheating: System interference. 03427_ Particle Gun temporarily disabled. 03433_ Lgt. Nuclear Core destroyed. 03435_ Y-45 Defender destroyed. 03436_ U-05 Engineer builds a Wall. 03439_ Aluminum Leg destroyed. 03442_ Acquired Com. Battery. 03446_ U-05 Engineer builds a Door. 03447_ C:CLON>CLJAXR QHNR:B 03448_ U-05 Engineer builds a Wall. Map ----- +----------------------------------------------------+ | ??????????????# #?????# # ! """ #?????????? | | ??????????????# #?????# # """ #?????????? | | ??????????????# #?????######### ! #?????????? | | ??????????????# #?????????????##########?????????? | | ??????????????# #?????#######????????????????????? | | ??????????????#%#?????? #????????????????????? | | ??????????????#%#####?? #????????????????????? | | ??????????????# # #??? #????????????????????? | | ??????????????# # #??? #????????????????????? | | ??????????????# + #???? ?????????????????????? | | ??????????????# # #???? #######??????????????? | | ??????????????# # #??###+## #??????????????? | | ??????????????# # #??# ### #####??????? | | ??????????????# # #??# +??????? | | ??????????????# ##/##### ###+#####??????? | | ??????????????# ## ! !#??????????????? | | ??????????????# ####/###??????????????? | | ??????????????# #%%=% #??????????????? | | ??????????????# +[ * #??????????????? | | ??????????????####+##### #%[ ] #??????????????? | | ???????????????????????# # #??????????????? | | ???????????????????????# a # = #??????????????? | | ???????????????????????# + #??????????????? | | ???????????????????????# g########??????????????? | | ???????????????????????+ #?????????????????????? | | ???????????????????????##@##?????????????????????? | | ??????????????????????? ?????????????????????? | | ????????????????????? !![ ???????????????????? | | ???????????????????# ![[ """ #?????????????????? | | ???????????????????#/ ![[ """ #?????????????????? | | ???????????????????# """ #?????????????????? | | ???????????????????# ! #?????????????????? | | ???????????????????# ???????????????????? | | ???????????????????##########????????????????????? | | | | | | | | | | | | | | | | | | | | | | | | | | | | | | | | | +----------------------------------------------------+ Best States ------------- Heat Dissipation 31 Energy Generation 14 Energy Capacity 300 Matter Stores 496 Matter Capacity 500 Sight Range 16 Terrain Scan Density 10 Armor Coverage 150 Core Shielding 20 Power Shielding 33 Evasion (%) 55 Recoil Reduction 2 Item Schematics ----------------- None Robot Schematics ------------------ None Fabricated ------------ Nothing Alien Tech Used ----------------- None Achievements -------------- None Challenges ------------ None Game ------ Seed SlugBombardmentExtractor Manual? 0 Play Time 01:03:21 Cumulative 5.0 hours Start 2024.03.03 @ 03:21:34 End 2024.05.04 @ 01:43:44 Sessions 2 Manual Loads 0 Difficulty Rogue Special Mode None Game No. 13 Rogue 13 Adventurer 0 Explorer 0 Win Type - Total 0 Types 0/0/0/0/0/0/0/0/0 Lore% 8 Gallery% 9 Achievement% 7 Wizard Run 0 Options --------- Layout 1 ASCII 0 Keyboard 1 Movement Numpad Keybinds 0 Fullscreen 1 Font 24/Terminus Map View 50x35 Zoom Use 0% Tactical HUD 1 Map Filters NONE Filters NONE Steam 1 RUN: 483b3e95-7cd3-4c5b-a2bd-9553decd441c